[Event "Early-Titled-Tuesday-Blitz-April-02-2024"]
[Site "Chess.com"]
[Date "2024.04.02"]
[Round "7"]
[White "maximnovik"]
[Black "Alen_Yeremyann"]
[Result "0-1"]
[WhiteElo "2594"]
[BlackElo "2824"]
[TimeControl "180+1"]
[EndTime "9:15:59 PDT"]
[Termination "Alen_Yeremyann won by resignation"]

1. e4 {[%clk 0:02:59.2]} 1... c5 {[%clk 0:02:59.5]} 2. Nf3 {[%clk 0:02:59]} 2...
Nc6 {[%clk 0:03:00.3]} 3. Bb5 {[%clk 0:02:58.4]} 3... e6 {[%clk 0:03:00.9]} 4.
O-O {[%clk 0:02:53.6]} 4... Nge7 {[%clk 0:03:00.7]} 5. c3 {[%clk 0:02:53.3]}
5... a6 {[%clk 0:03:00.8]} 6. Ba4 {[%clk 0:02:53.2]} 6... Ng6 {[%clk 0:03:00.8]}
7. Re1 {[%clk 0:02:51.6]} 7... Be7 {[%clk 0:03:00.5]} 8. d4 {[%clk 0:02:51.7]}
8... cxd4 {[%clk 0:03:01.2]} 9. cxd4 {[%clk 0:02:51.9]} 9... b5 {[%clk
0:03:02.1]} 10. Bb3 {[%clk 0:02:45.8]} 10... Na5 {[%clk 0:03:02.5]} 11. Bc2
{[%clk 0:02:45.5]} 11... O-O {[%clk 0:02:58.9]} 12. Nc3 {[%clk 0:02:43.6]} 12...
d6 {[%clk 0:02:57.6]} 13. Ne2 {[%clk 0:02:24.1]} 13... Bb7 {[%clk 0:02:55.8]}
14. Ng3 {[%clk 0:02:24]} 14... Rc8 {[%clk 0:02:50.1]} 15. b3 {[%clk 0:02:22.4]}
15... Nc6 {[%clk 0:02:49.7]} 16. Bd2 {[%clk 0:02:20.8]} 16... d5 {[%clk
0:02:45.5]} 17. e5 {[%clk 0:02:17.7]} 17... Nb4 {[%clk 0:02:41]} 18. Bb1 {[%clk
0:02:03.6]} 18... Qc7 {[%clk 0:02:37.1]} 19. Re2 {[%clk 0:01:52.4]} 19... Nc2
{[%clk 0:02:29.3]} 20. Bxc2 {[%clk 0:01:46.8]} 20... Qxc2 {[%clk 0:02:28.6]} 21.
Bg5 {[%clk 0:01:37.6]} 21... Qxd1+ {[%clk 0:02:24.2]} 22. Rxd1 {[%clk
0:01:37.2]} 22... Bxg5 {[%clk 0:02:24.9]} 23. Nxg5 {[%clk 0:01:37.3]} 23... Nf4
{[%clk 0:02:25.1]} 24. Red2 {[%clk 0:01:36.8]} 24... Rc3 {[%clk 0:02:23.8]} 25.
Nf1 {[%clk 0:01:23.1]} 25... Rfc8 {[%clk 0:02:17.8]} 26. g3 {[%clk 0:01:23.2]}
26... Ng6 {[%clk 0:02:16.1]} 27. Ne3 {[%clk 0:01:21.3]} 27... h6 {[%clk
0:02:15.2]} 28. Nf3 {[%clk 0:01:20.2]} 28... b4 {[%clk 0:02:15.8]} 29. Ne1
{[%clk 0:01:18.8]} 29... a5 {[%clk 0:02:02.7]} 30. Nd3 {[%clk 0:01:18.9]} 30...
Ba6 {[%clk 0:02:03.1]} 31. Nc5 {[%clk 0:01:18.8]} 31... Bb5 {[%clk 0:02:03.8]}
32. Rb1 {[%clk 0:01:14.5]} 32... Nxe5 {[%clk 0:02:03.9]} 33. dxe5 {[%clk
0:01:06.6]} 33... R8xc5 {[%clk 0:02:01.4]} 34. Rbd1 {[%clk 0:01:00]} 34... a4
{[%clk 0:01:50.2]} 35. Rd4 {[%clk 0:00:56.6]} 35... axb3 {[%clk 0:01:46.9]} 36.
axb3 {[%clk 0:00:54.9]} 36... Rxb3 {[%clk 0:01:47.8]} 37. Kg2 {[%clk 0:00:49.8]}
37... Rb2 {[%clk 0:01:43.5]} 38. Ra1 {[%clk 0:00:49.4]} 38... Rc3 {[%clk
0:01:39.6]} 39. Ra8+ {[%clk 0:00:45.4]} 39... Kh7 {[%clk 0:01:39.8]} 40. Ng4
{[%clk 0:00:26.5]} 40... Be2 {[%clk 0:01:38.5]} 41. Rf4 {[%clk 0:00:26.5]} 41...
Bxg4 {[%clk 0:01:38.3]} 42. Rxg4 {[%clk 0:00:26.7]} 42... Rc4 {[%clk 0:01:38]}
0-1

[Event "Early-Titled-Tuesday-Blitz-April-02-2024"]
[Site "Chess.com"]
[Date "2024.04.02"]
[Round "7"]
[White "Meri-Arabidze"]
[Black "Aisen1011"]
[Result "1-0"]
[WhiteElo "2689"]
[BlackElo "2491"]
[TimeControl "180+1"]
[EndTime "9:16:03 PDT"]
[Termination "Meri-Arabidze won on time"]

1. Nf3 {[%clk 0:02:58.4]} 1... d5 {[%clk 0:02:59]} 2. c4 {[%clk 0:02:58.1]} 2...
c6 {[%clk 0:02:58.7]} 3. g3 {[%clk 0:02:58.3]} 3... Nf6 {[%clk 0:02:57.1]} 4.
Bg2 {[%clk 0:02:58.3]} 4... Bf5 {[%clk 0:02:57.5]} 5. Qb3 {[%clk 0:02:56.6]}
5... Qb6 {[%clk 0:02:57.1]} 6. d3 {[%clk 0:02:56.9]} 6... e6 {[%clk 0:02:56.7]}
7. Be3 {[%clk 0:02:56.7]} 7... Qxb3 {[%clk 0:02:48]} 8. axb3 {[%clk 0:02:57.3]}
8... a6 {[%clk 0:02:48.4]} 9. Nh4 {[%clk 0:02:51.7]} 9... Bg4 {[%clk 0:02:42.9]}
10. h3 {[%clk 0:02:51.6]} 10... Bh5 {[%clk 0:02:43]} 11. g4 {[%clk 0:02:52.2]}
11... Bg6 {[%clk 0:02:43.3]} 12. f4 {[%clk 0:02:48.8]} 12... Be7 {[%clk
0:02:36]} 13. Nxg6 {[%clk 0:02:45.2]} 13... hxg6 {[%clk 0:02:35.4]} 14. Bd4
{[%clk 0:02:38.4]} 14... Nbd7 {[%clk 0:02:30.9]} 15. O-O {[%clk 0:02:22.3]}
15... Bc5 {[%clk 0:02:00.6]} 16. Bxc5 {[%clk 0:02:17]} 16... Nxc5 {[%clk
0:02:00.1]} 17. Nd2 {[%clk 0:02:17.9]} 17... Ke7 {[%clk 0:01:39.5]} 18. b4
{[%clk 0:02:17.5]} 18... Ncd7 {[%clk 0:01:35.5]} 19. Nb3 {[%clk 0:02:17.6]}
19... Rab8 {[%clk 0:00:59.4]} 20. Na5 {[%clk 0:02:14.2]} 20... Nb6 {[%clk
0:00:38.2]} 21. Rfc1 {[%clk 0:02:05.6]} 21... dxc4 {[%clk 0:00:33.7]} 22. dxc4
{[%clk 0:02:06]} 22... Rhd8 {[%clk 0:00:15.1]} 23. Rc2 {[%clk 0:02:06.2]} 23...
Rd4 {[%clk 0:00:13.2]} 24. Bxc6 {[%clk 0:02:00.1]} 24... Rxf4 {[%clk 0:00:13.1]}
25. Bxb7 {[%clk 0:01:59]} 25... Rh8 {[%clk 0:00:08.8]} 26. Bg2 {[%clk
0:01:55.5]} 26... Rd8 {[%clk 0:00:05.3]} 27. Nc6+ {[%clk 0:01:55]} 27... Ke8
{[%clk 0:00:05.7]} 28. Nxd8 {[%clk 0:01:55.6]} 28... Kxd8 {[%clk 0:00:06.6]} 29.
c5 {[%clk 0:01:53]} 29... Nc4 {[%clk 0:00:06.5]} 30. Rxa6 {[%clk 0:01:50.1]}
30... Ne3 {[%clk 0:00:06.3]} 31. Rd2+ {[%clk 0:01:50.6]} 31... Ke7 {[%clk
0:00:02.6]} 32. Ra7+ {[%clk 0:01:48.7]} 32... Ke8 {[%clk 0:00:01.1]} 33. c6
{[%clk 0:01:47.7]} 33... Nfd5 {[%clk 0:00:01.2]} 34. b5 {[%clk 0:01:42]} 1-0

[Event "Early-Titled-Tuesday-Blitz-April-02-2024"]
[Site "Chess.com"]
[Date "2024.04.02"]
[Round "7"]
[White "AjedrezenMadrid"]
[Black "fmcabralis"]
[Result "1-0"]
[WhiteElo "2568"]
[BlackElo "2414"]
[TimeControl "180+1"]
[EndTime "9:16:03 PDT"]
[Termination "AjedrezenMadrid won by checkmate"]

1. Nf3 {[%clk 0:03:00.9]} 1... Nf6 {[%clk 0:02:57.8]} 2. b3 {[%clk 0:03:00.7]}
2... g6 {[%clk 0:02:55.3]} 3. Bb2 {[%clk 0:03:01]} 3... Bg7 {[%clk 0:02:55.7]}
4. g3 {[%clk 0:03:01.5]} 4... O-O {[%clk 0:02:55.7]} 5. Bg2 {[%clk 0:03:02.1]}
5... d5 {[%clk 0:02:55.9]} 6. c4 {[%clk 0:03:02.2]} 6... c6 {[%clk 0:02:56]} 7.
O-O {[%clk 0:03:02.2]} 7... Re8 {[%clk 0:02:54.7]} 8. d4 {[%clk 0:02:55.9]} 8...
Bf5 {[%clk 0:02:54.5]} 9. Nc3 {[%clk 0:02:53.5]} 9... Nbd7 {[%clk 0:02:43.5]}
10. cxd5 {[%clk 0:02:53.4]} 10... cxd5 {[%clk 0:02:43.6]} 11. Rc1 {[%clk
0:02:53.9]} 11... Rc8 {[%clk 0:02:41.5]} 12. Ne5 {[%clk 0:02:53.3]} 12... e6
{[%clk 0:02:35]} 13. Nb5 {[%clk 0:02:52.6]} 13... Rxc1 {[%clk 0:02:14.3]} 14.
Qxc1 {[%clk 0:02:51.9]} 14... Nxe5 {[%clk 0:02:06.7]} 15. dxe5 {[%clk
0:02:50.6]} 15... Ne4 {[%clk 0:02:00.7]} 16. Qc7 {[%clk 0:02:15.3]} 16... a6
{[%clk 0:01:51.7]} 17. Qxd8 {[%clk 0:02:08.4]} 17... Rxd8 {[%clk 0:01:52.6]} 18.
Nd4 {[%clk 0:02:08.5]} 18... Rc8 {[%clk 0:01:34.1]} 19. Nxf5 {[%clk 0:02:06.4]}
19... gxf5 {[%clk 0:01:32.4]} 20. f3 {[%clk 0:02:05.7]} 20... Nd2 {[%clk
0:01:18.9]} 21. Rd1 {[%clk 0:02:05.3]} 21... Rc2 {[%clk 0:01:19.5]} 22. Bc1
{[%clk 0:02:03.6]} 22... Nb1 {[%clk 0:01:16.9]} 23. Kf1 {[%clk 0:01:27.5]} 23...
Nc3 {[%clk 0:01:12.9]} 24. Re1 {[%clk 0:01:26.5]} 24... Bxe5 {[%clk 0:01:11.1]}
25. Bh6 {[%clk 0:01:23.7]} 25... Nxa2 {[%clk 0:01:03.7]} 26. b4 {[%clk 0:01:18]}
26... Bc3 {[%clk 0:00:58.3]} 27. Rb1 {[%clk 0:01:16.9]} 27... Nxb4 {[%clk
0:00:54.5]} 28. g4 {[%clk 0:01:10.4]} 28... a5 {[%clk 0:00:49.7]} 29. gxf5
{[%clk 0:01:10.2]} 29... exf5 {[%clk 0:00:50.6]} 30. Bh3 {[%clk 0:01:10.6]}
30... a4 {[%clk 0:00:42.5]} 31. Bxf5 {[%clk 0:01:10.6]} 31... Rb2 {[%clk
0:00:42.9]} 32. Rc1 {[%clk 0:01:08.7]} 32... d4 {[%clk 0:00:38.3]} 33. Kf2
{[%clk 0:01:08.5]} 33... a3 {[%clk 0:00:37.5]} 34. Rg1+ {[%clk 0:01:08]} 34...
Kh8 {[%clk 0:00:36.5]} 35. Bg7+ {[%clk 0:01:05.9]} 35... Kg8 {[%clk 0:00:37.1]}
36. Bxd4+ {[%clk 0:01:05.5]} 36... Kf8 {[%clk 0:00:36.5]} 37. Bc5+ {[%clk
0:01:03.4]} 37... Ke8 {[%clk 0:00:34.3]} 38. Rg8# {[%clk 0:01:04.3]} 1-0

[Event "Early-Titled-Tuesday-Blitz-April-02-2024"]
[Site "Chess.com"]
[Date "2024.04.02"]
[Round "7"]
[White "Quattroporte300"]
[Black "HanSchut"]
[Result "1-0"]
[WhiteElo "2506"]
[BlackElo "2266"]
[TimeControl "180+1"]
[EndTime "9:16:04 PDT"]
[Termination "Quattroporte300 won by resignation"]

1. e4 {[%clk 0:03:00.9]} 1... c5 {[%clk 0:02:59.5]} 2. Nf3 {[%clk 0:03:00.5]}
2... d6 {[%clk 0:03:00.1]} 3. d4 {[%clk 0:03:00.8]} 3... cxd4 {[%clk 0:03:01]}
4. Nxd4 {[%clk 0:03:01.4]} 4... Nf6 {[%clk 0:03:00.3]} 5. Nc3 {[%clk 0:03:02]}
5... a6 {[%clk 0:03:00.6]} 6. Be3 {[%clk 0:03:02.1]} 6... e5 {[%clk 0:03:00.9]}
7. Nb3 {[%clk 0:03:01.5]} 7... Be6 {[%clk 0:03:01.6]} 8. Qd2 {[%clk 0:03:01.9]}
8... Be7 {[%clk 0:03:01.6]} 9. f3 {[%clk 0:03:01.7]} 9... Nbd7 {[%clk
0:03:01.7]} 10. O-O-O {[%clk 0:03:01.8]} 10... O-O {[%clk 0:03:01.5]} 11. g4
{[%clk 0:03:01.2]} 11... b5 {[%clk 0:03:02.1]} 12. g5 {[%clk 0:02:53.7]} 12...
b4 {[%clk 0:03:02]} 13. gxf6 {[%clk 0:02:46.7]} 13... bxc3 {[%clk 0:03:02.9]}
14. Qxc3 {[%clk 0:02:46.7]} 14... Nxf6 {[%clk 0:03:00.7]} 15. Qa5 {[%clk
0:02:36.2]} 15... Bxb3 {[%clk 0:02:46.8]} 16. Qxd8 {[%clk 0:02:35.4]} 16...
Rfxd8 {[%clk 0:02:46.6]} 17. axb3 {[%clk 0:02:34.7]} 17... d5 {[%clk 0:02:46.9]}
18. exd5 {[%clk 0:02:33.7]} 18... Nxd5 {[%clk 0:02:43.8]} 19. Bd2 {[%clk
0:02:30.4]} 19... a5 {[%clk 0:02:37.7]} 20. Bd3 {[%clk 0:02:27.4]} 20... Nb4
{[%clk 0:02:34.4]} 21. Bc4 {[%clk 0:02:24.7]} 21... Kf8 {[%clk 0:01:55]} 22.
Rhe1 {[%clk 0:02:14.7]} 22... Bf6 {[%clk 0:01:33.6]} 23. Kb1 {[%clk 0:02:08.1]}
23... h6 {[%clk 0:01:28.2]} 24. Bc3 {[%clk 0:02:06.6]} 24... Rxd1+ {[%clk
0:01:25.6]} 25. Rxd1 {[%clk 0:02:06.3]} 25... g5 {[%clk 0:01:18.2]} 26. Rd7
{[%clk 0:01:59.7]} 26... Be7 {[%clk 0:00:56.1]} 27. Bxe5 {[%clk 0:01:55.7]}
27... Nc6 {[%clk 0:00:48.4]} 28. Bc3 {[%clk 0:01:52.9]} 28... a4 {[%clk
0:00:41.7]} 29. bxa4 {[%clk 0:01:44]} 29... f6 {[%clk 0:00:24.8]} 30. b3 {[%clk
0:01:33.2]} 30... h5 {[%clk 0:00:23]} 31. Be6 {[%clk 0:01:27.7]} 31... Nd8
{[%clk 0:00:21.5]} 32. Bf5 {[%clk 0:01:25.8]} 32... Nf7 {[%clk 0:00:21.4]} 33.
Bg6 {[%clk 0:01:21.9]} 33... g4 {[%clk 0:00:15.2]} 34. Bxh5 {[%clk 0:01:18.8]}
34... gxf3 {[%clk 0:00:14.7]} 35. Bxf3 {[%clk 0:01:19]} 35... Ng5 {[%clk
0:00:15.4]} 36. Bxa8 {[%clk 0:01:18.4]} 1-0

[Event "Early-Titled-Tuesday-Blitz-April-02-2024"]
[Site "Chess.com"]
[Date "2024.04.02"]
[Round "7"]
[White "Shield12"]
[Black "BardArtem"]
[Result "1-0"]
[WhiteElo "3030"]
[BlackElo "2849"]
[TimeControl "180+1"]
[EndTime "9:16:06 PDT"]
[Termination "Shield12 won by resignation"]

1. e4 {[%clk 0:03:00.9]} 1... d5 {[%clk 0:02:57.7]} 2. exd5 {[%clk 0:03:00.6]}
2... Qxd5 {[%clk 0:02:58.6]} 3. Nc3 {[%clk 0:03:00.7]} 3... Qe5+ {[%clk
0:02:58.6]} 4. Be2 {[%clk 0:03:00.3]} 4... Bg4 {[%clk 0:02:57.5]} 5. d4 {[%clk
0:03:00.8]} 5... Bxe2 {[%clk 0:02:57.3]} 6. Ngxe2 {[%clk 0:03:00.9]} 6... Qa5
{[%clk 0:02:56.9]} 7. O-O {[%clk 0:02:59.1]} 7... Nf6 {[%clk 0:02:55.9]} 8. b4
{[%clk 0:02:58.7]} 8... Qxb4 {[%clk 0:02:50.9]} 9. Rb1 {[%clk 0:02:56.6]} 9...
Qc4 {[%clk 0:02:50.7]} 10. Rxb7 {[%clk 0:02:55.9]} 10... e6 {[%clk 0:02:50.8]}
11. Bf4 {[%clk 0:02:54.1]} 11... Na6 {[%clk 0:02:50.2]} 12. Be5 {[%clk
0:02:46.8]} 12... Bb4 {[%clk 0:02:48]} 13. Bxf6 {[%clk 0:02:33.4]} 13... gxf6
{[%clk 0:02:46.1]} 14. Ne4 {[%clk 0:02:33.3]} 14... Qc6 {[%clk 0:02:32.3]} 15.
Nxf6+ {[%clk 0:02:28.6]} 15... Ke7 {[%clk 0:02:32.3]} 16. Rxb4 {[%clk
0:02:22.4]} 16... Nxb4 {[%clk 0:02:33.2]} 17. Nh5 {[%clk 0:02:19.6]} 17... Qxc2
{[%clk 0:02:27.8]} 18. Qe1 {[%clk 0:02:17.8]} 18... Nd3 {[%clk 0:02:07.6]} 19.
Qa5 {[%clk 0:02:17.2]} 19... Rab8 {[%clk 0:01:00.7]} 20. Nc3 {[%clk 0:02:03.6]}
20... Kd7 {[%clk 0:00:45.9]} 21. Nf6+ {[%clk 0:01:58.6]} 21... Kc8 {[%clk
0:00:45.9]} 22. Nb5 {[%clk 0:01:46.2]} 22... Rb7 {[%clk 0:00:30.9]} 23. Nxa7+
{[%clk 0:01:43.6]} 23... Rxa7 {[%clk 0:00:25.2]} 24. Qxa7 {[%clk 0:01:42.9]}
24... Qc6 {[%clk 0:00:24.5]} 25. Rb1 {[%clk 0:01:39.1]} 25... Nb2 {[%clk
0:00:08.7]} 26. h3 {[%clk 0:01:23.6]} 26... Rd8 {[%clk 0:00:07.8]} 27. Kh2
{[%clk 0:01:21.8]} 27... Qb5 {[%clk 0:00:01.4]} 28. Qa8+ {[%clk 0:01:20.3]}
28... Qb8 {[%clk 0:00:01.2]} 29. Qxb8+ {[%clk 0:01:20.6]} 29... Kxb8 {[%clk
0:00:02.1]} 30. Rxb2+ {[%clk 0:01:21.2]} 1-0

[Event "Early-Titled-Tuesday-Blitz-April-02-2024"]
[Site "Chess.com"]
[Date "2024.04.02"]
[Round "7"]
[White "MKlose11"]
[Black "SharathRk6"]
[Result "1-0"]
[WhiteElo "2617"]
[BlackElo "2422"]
[TimeControl "180+1"]
[EndTime "9:16:08 PDT"]
[Termination "MKlose11 won by resignation"]

1. e4 {[%clk 0:02:56.2]} 1... e5 {[%clk 0:02:59.5]} 2. Nf3 {[%clk 0:02:55.9]}
2... Nc6 {[%clk 0:02:59.7]} 3. d4 {[%clk 0:02:56.8]} 3... Nb4 {[%clk 0:03:00.6]}
4. Nxe5 {[%clk 0:02:54.8]} 4... Nc6 {[%clk 0:02:59.8]} 5. Nxc6 {[%clk 0:02:54]}
5... dxc6 {[%clk 0:03:00.3]} 6. c3 {[%clk 0:02:52.2]} 6... Be7 {[%clk
0:02:58.2]} 7. Bd3 {[%clk 0:02:51.2]} 7... Nf6 {[%clk 0:02:58.5]} 8. e5 {[%clk
0:02:50.7]} 8... Nd5 {[%clk 0:02:58.1]} 9. O-O {[%clk 0:02:51.1]} 9... O-O
{[%clk 0:02:57.5]} 10. Qh5 {[%clk 0:02:49.3]} 10... g6 {[%clk 0:02:57.8]} 11.
Qe2 {[%clk 0:02:46.6]} 11... Re8 {[%clk 0:02:57.2]} 12. Bh6 {[%clk 0:02:45.7]}
12... Bg5 {[%clk 0:02:54.2]} 13. Bxg5 {[%clk 0:02:42.5]} 13... Qxg5 {[%clk
0:02:55.1]} 14. g3 {[%clk 0:02:42.5]} 14... Bh3 {[%clk 0:02:53.5]} 15. Re1
{[%clk 0:02:37.4]} 15... Rad8 {[%clk 0:02:53.7]} 16. Be4 {[%clk 0:02:34.4]}
16... Nb6 {[%clk 0:02:43.2]} 17. f4 {[%clk 0:02:30.7]} 17... Qe7 {[%clk
0:02:40.1]} 18. Nd2 {[%clk 0:02:30.8]} 18... f5 {[%clk 0:02:36.7]} 19. Bf3
{[%clk 0:02:21.7]} 19... c5 {[%clk 0:02:35.1]} 20. Nb3 {[%clk 0:02:17.1]} 20...
cxd4 {[%clk 0:02:30.9]} 21. Nxd4 {[%clk 0:02:14.5]} 21... a6 {[%clk 0:02:24.1]}
22. Bxb7 {[%clk 0:02:12.8]} 22... c5 {[%clk 0:02:24.1]} 23. Nc6 {[%clk
0:02:11.3]} 23... Qxb7 {[%clk 0:02:24.1]} 24. Nxd8 {[%clk 0:02:11.1]} 24... Rxd8
{[%clk 0:02:23.7]} 25. Rad1 {[%clk 0:02:10.6]} 25... Re8 {[%clk 0:02:19.6]} 26.
Rd6 {[%clk 0:02:07.1]} 26... Nc8 {[%clk 0:02:11.9]} 27. Rd2 {[%clk 0:02:03.6]}
27... Nb6 {[%clk 0:01:56.2]} 28. b3 {[%clk 0:02:03.2]} 28... c4 {[%clk
0:01:54.5]} 29. b4 {[%clk 0:02:00.1]} 29... Rc8 {[%clk 0:01:31]} 30. Qf2 {[%clk
0:01:44.1]} 30... Nd5 {[%clk 0:01:21.5]} 31. Qd4 {[%clk 0:01:40.6]} 31... Ne7
{[%clk 0:01:18]} 32. Qd7 {[%clk 0:01:34.7]} 32... Qb6+ {[%clk 0:00:41.6]} 33.
Rd4 {[%clk 0:01:27.5]} 33... Rc7 {[%clk 0:00:40.1]} 34. Qd8+ {[%clk 0:01:25]}
34... Kg7 {[%clk 0:00:40.2]} 35. Re3 {[%clk 0:01:22.5]} 35... Nc6 {[%clk
0:00:36]} 36. Rd7+ {[%clk 0:01:19.8]} 36... Rxd7 {[%clk 0:00:26.6]} 37. Qxb6
{[%clk 0:01:19.6]} 37... Ne7 {[%clk 0:00:21.5]} 38. Qf6+ {[%clk 0:01:13.1]} 1-0

[Event "Early-Titled-Tuesday-Blitz-April-02-2024"]
[Site "Chess.com"]
[Date "2024.04.02"]
[Round "7"]
[White "vladoboch"]
[Black "ChessQueen"]
[Result "0-1"]
[WhiteElo "2532"]
[BlackElo "2729"]
[TimeControl "180+1"]
[EndTime "9:16:11 PDT"]
[Termination "ChessQueen won by resignation"]

1. e4 {[%clk 0:03:00.9]} 1... c6 {[%clk 0:03:00.1]} 2. d4 {[%clk 0:03:00.8]}
2... d5 {[%clk 0:03:01]} 3. e5 {[%clk 0:03:01.2]} 3... c5 {[%clk 0:03:01.4]} 4.
dxc5 {[%clk 0:03:00.9]} 4... e6 {[%clk 0:03:02]} 5. Nf3 {[%clk 0:02:59.8]} 5...
Bxc5 {[%clk 0:03:01]} 6. a3 {[%clk 0:02:56.8]} 6... f6 {[%clk 0:02:56.8]} 7. b4
{[%clk 0:02:54]} 7... Be7 {[%clk 0:02:56.7]} 8. Bb2 {[%clk 0:02:52.9]} 8... a5
{[%clk 0:02:55.8]} 9. b5 {[%clk 0:02:50.6]} 9... Nd7 {[%clk 0:02:56]} 10. c4
{[%clk 0:02:48.9]} 10... Nxe5 {[%clk 0:02:50.5]} 11. Nxe5 {[%clk 0:02:40.6]}
11... fxe5 {[%clk 0:02:51.4]} 12. cxd5 {[%clk 0:02:33.4]} 12... Nf6 {[%clk
0:02:19.8]} 13. Bxe5 {[%clk 0:02:23.8]} 13... exd5 {[%clk 0:02:15.1]} 14. Be2
{[%clk 0:02:07.7]} 14... O-O {[%clk 0:02:13.2]} 15. O-O {[%clk 0:02:06.7]} 15...
Be6 {[%clk 0:02:12.5]} 16. Nd2 {[%clk 0:02:01.8]} 16... Qb6 {[%clk 0:02:05.8]}
17. Nf3 {[%clk 0:01:49.1]} 17... Bc5 {[%clk 0:01:56.6]} 18. Bd4 {[%clk
0:01:43.4]} 18... Ne4 {[%clk 0:01:53.4]} 19. Rc1 {[%clk 0:01:35.3]} 19... Rac8
{[%clk 0:01:48.2]} 20. Bxc5 {[%clk 0:01:28.6]} 20... Rxc5 {[%clk 0:01:48]} 21.
Qd4 {[%clk 0:01:23.7]} 21... Rfc8 {[%clk 0:01:39.6]} 22. Bd3 {[%clk 0:01:00.3]}
22... Bf7 {[%clk 0:01:15.6]} 23. Ne5 {[%clk 0:00:28.8]} 23... Qf6 {[%clk
0:01:11.5]} 24. Rxc5 {[%clk 0:00:19.9]} 24... Nxc5 {[%clk 0:01:11.7]} 25. Rc1
{[%clk 0:00:13.3]} 25... b6 {[%clk 0:01:12.2]} 26. Nc6 {[%clk 0:00:07.5]} 26...
Rxc6 {[%clk 0:01:10.5]} 27. Bxh7+ {[%clk 0:00:03.5]} 0-1

[Event "Early-Titled-Tuesday-Blitz-April-02-2024"]
[Site "Chess.com"]
[Date "2024.04.02"]
[Round "7"]
[White "MathiasWomacka"]
[Black "frequentblunders"]
[Result "1-0"]
[WhiteElo "2475"]
[BlackElo "2218"]
[TimeControl "180+1"]
[EndTime "9:16:23 PDT"]
[Termination "MathiasWomacka won by resignation"]

1. e4 {[%clk 0:03:00.9]} 1... e6 {[%clk 0:02:59.8]} 2. d4 {[%clk 0:03:00.1]}
2... c5 {[%clk 0:03:00.7]} 3. Nf3 {[%clk 0:02:58]} 3... cxd4 {[%clk 0:02:59.7]}
4. Nxd4 {[%clk 0:02:58.9]} 4... Nf6 {[%clk 0:02:59.9]} 5. Nc3 {[%clk 0:02:58.1]}
5... Nc6 {[%clk 0:03:00.2]} 6. Ndb5 {[%clk 0:02:55.2]} 6... d6 {[%clk
0:02:59.8]} 7. Bf4 {[%clk 0:02:54.3]} 7... e5 {[%clk 0:02:59.7]} 8. Bg5 {[%clk
0:02:54.8]} 8... a6 {[%clk 0:02:59.8]} 9. Na3 {[%clk 0:02:55]} 9... b5 {[%clk
0:02:59.8]} 10. Nd5 {[%clk 0:02:54.8]} 10... Be7 {[%clk 0:02:39.2]} 11. Bxf6
{[%clk 0:02:52.6]} 11... Bxf6 {[%clk 0:02:34.2]} 12. c3 {[%clk 0:02:53.1]} 12...
O-O {[%clk 0:02:34]} 13. Nc2 {[%clk 0:02:52.7]} 13... Be6 {[%clk 0:02:13.4]} 14.
a4 {[%clk 0:02:49.8]} 14... bxa4 {[%clk 0:02:05]} 15. Rxa4 {[%clk 0:02:50.7]}
15... a5 {[%clk 0:02:02.5]} 16. Bc4 {[%clk 0:02:27.6]} 16... Bg5 {[%clk
0:01:32.9]} 17. O-O {[%clk 0:02:25]} 17... Kh8 {[%clk 0:01:25.6]} 18. Nce3
{[%clk 0:02:08.5]} 18... Bxe3 {[%clk 0:01:16]} 19. Nxe3 {[%clk 0:02:07]} 19...
Bxc4 {[%clk 0:01:13.2]} 20. Nxc4 {[%clk 0:02:07.9]} 20... Rb8 {[%clk 0:01:08]}
21. Ra2 {[%clk 0:01:33.5]} 21... Qc7 {[%clk 0:01:01.3]} 22. Qxd6 {[%clk
0:01:31.3]} 22... Qxd6 {[%clk 0:00:57.9]} 23. Nxd6 {[%clk 0:01:32.2]} 23... g6
{[%clk 0:00:51.8]} 24. Rd1 {[%clk 0:01:27.5]} 24... Kg7 {[%clk 0:00:50.7]} 25.
Nc4 {[%clk 0:01:23.9]} 25... Rb3 {[%clk 0:00:48.6]} 26. Kf1 {[%clk 0:01:13.6]}
26... Rc8 {[%clk 0:00:46.5]} 27. Rd2 {[%clk 0:01:01.9]} 27... Nd4 {[%clk
0:00:16.7]} 28. Nxa5 {[%clk 0:00:54.6]} 1-0

[Event "Early-Titled-Tuesday-Blitz-April-02-2024"]
[Site "Chess.com"]
[Date "2024.04.02"]
[Round "7"]
[White "Balla_Tamas"]
[Black "WilsonPalencia21"]
[Result "1-0"]
[WhiteElo "2479"]
[BlackElo "2574"]
[TimeControl "180+1"]
[EndTime "9:16:25 PDT"]
[Termination "Balla_Tamas won on time"]

1. Nf3 {[%clk 0:03:00.9]} 1... c5 {[%clk 0:02:57.6]} 2. b3 {[%clk 0:02:59.7]}
2... Nc6 {[%clk 0:02:56.9]} 3. Bb2 {[%clk 0:02:59.6]} 3... e6 {[%clk 0:02:55.4]}
4. e3 {[%clk 0:02:58.9]} 4... Nf6 {[%clk 0:02:55.5]} 5. c4 {[%clk 0:02:58.2]}
5... b6 {[%clk 0:02:55.9]} 6. Be2 {[%clk 0:02:58]} 6... Bb7 {[%clk 0:02:56.2]}
7. O-O {[%clk 0:02:58]} 7... Be7 {[%clk 0:02:56.7]} 8. d4 {[%clk 0:02:53.5]}
8... cxd4 {[%clk 0:02:57.6]} 9. exd4 {[%clk 0:02:54.4]} 9... O-O {[%clk
0:02:56.6]} 10. d5 {[%clk 0:02:53]} 10... exd5 {[%clk 0:02:55.7]} 11. cxd5
{[%clk 0:02:53.9]} 11... Nb4 {[%clk 0:02:55.8]} 12. d6 {[%clk 0:02:53.5]} 12...
Bxd6 {[%clk 0:02:54.1]} 13. Qxd6 {[%clk 0:02:53.1]} 13... Nc2 {[%clk 0:02:54.5]}
14. Rd1 {[%clk 0:02:14.7]} 14... Re8 {[%clk 0:02:51.7]} 15. Bc4 {[%clk
0:02:00.1]} 15... Nxa1 {[%clk 0:02:45]} 16. Bxa1 {[%clk 0:01:58.7]} 16... Bxf3
{[%clk 0:02:37.2]} 17. gxf3 {[%clk 0:01:58.8]} 17... Nh5 {[%clk 0:02:32.9]} 18.
Qxd7 {[%clk 0:01:54.7]} 18... Qg5+ {[%clk 0:02:30.7]} 19. Qg4 {[%clk 0:01:54.9]}
19... Qa5 {[%clk 0:01:53.4]} 20. Bc3 {[%clk 0:01:38.3]} 20... Qc5 {[%clk
0:01:33.6]} 21. b4 {[%clk 0:01:25.4]} 21... Qc6 {[%clk 0:00:59.8]} 22. Bd5
{[%clk 0:01:17.7]} 22... Qa4 {[%clk 0:00:45.9]} 23. Bb3 {[%clk 0:01:03.2]} 23...
Qb5 {[%clk 0:00:03]} 24. a4 {[%clk 0:00:51.8]} 1-0